bitfinex-derivatives/quotes_SOLF0:USTF0_20250720
["timestamp","ask_amount","ask_price","bid_price","bid_amount"]
[1753019952948,3.19,183.1,183.09,3.08]
[1753019953554,3.19,183.1,183.09,8.5394]
[1753019954248,2.25819919,183.13,183.09,3.08]
[1753019954551,3.19,183.14,183.08,3.08]
[1753019955048,2.25819919,183.18,183.1,3.08]
[1753019955355,3.19,183.17,183.11,3.08]
[1753019955752,3.19,183.17,183.14,5.4579]
[1753019955953,3.19,183.16,183.14,8.5379]
[1753019956252,3.19,183.16,183.14,3.08]
[1753019956948,3.19,183.16,183.15,3.08]
[1753019957648,3.19,183.16,183.13,8.5381]
[1753019957853,3.19,183.15,183.14,3.08]
[1753019958457,3.19,183.17,183.13,8.5381]
[1753019958758,3.19,183.17,183.14,3.08]
[1753019959051,3.19,183.18,183.15,3.08]
[1753019959953,3.19,183.18,183.17,3.08]
[1753019960456,3.19,183.2,183.14,3.08]
[1753019960648,3.19,183.2,183.16,5.4571]
[1753019960849,3.19,183.2,183.17,3.08]
[1753019961048,3.19,183.2,183.13,2.25819919]
[1753019961247,3.19,183.2,183.18,3.08]
[1753019961557,3.19,183.19,183.18,3.08]
[1753019962858,8.6464,183.19,183.15,3.08]
[1753019963151,3.19,183.18,183.15,3.08]
[1753019963962,3.19,183.17,183.15,3.08]
[1753019964257,3.19,183.17,183.16,3.08]
[1753019965456,3.19,183.17,183.14,3.08]
[1753019965653,8.6467,183.18,183.15,3.08]
[1753019966157,8.6467,183.18,183.13,5.458]
[1753019966464,3.19,183.18,183.14,3.08]
[1753019966665,3.19,183.17,183.14,8.5377]
[1753019966856,3.19,183.17,183.15,3.08]
[1753019967056,3.19,183.17,183.16,3.08]
[1753019969761,3.19,183.17,183.14,3.07]
[1753019969762,5.457,183.17,183.14,3.07]
[1753019969963,2.94,183.16,183.13,103.91]
[1753019970264,2.25819919,183.21,183.13,103.91]
[1753019970265,2.94,183.2,183.13,3.07]
[1753019970964,2.94,183.16,183.13,3.07]
[1753019971465,2.94,183.16,183.13,5.4581]
[1753019971661,2.94,183.16,183.15,3.07]
[1753019972559,2.94,183.16,183.13,3.07]
[1753019973065,2.94,183.15,183.12,108.53659919]
[1753019973263,2.94,183.15,183.14,3.07]
[1753019975967,6.12596385,183.25,183.14,3.07]
[1753019976163,2.94,183.2,183.14,3.07]
[1753019976868,5.4568,183.18,183.14,5.4579]
[1753019977166,2.94,183.16,183.15,3.07]
[1753019978571,5.4565,183.19,183.15,5.4576]
[1753019978768,2.94,183.18,183.16,3.07]
[1753019978965,2.94,183.18,183.15,3.07]
[1753019979470,2.94,183.16,183.15,3.07]
[1753019979769,2.94,183.15,183.14,3.07]
[1753019980273,2.94,183.18,183.15,3.07]
[1753019980570,2.94,183.18,183.16,3.07]
[1753019980969,2.94,183.17,183.16,3.07]
[1753019982070,2.94,183.17,183.14,8.5277]
[1753019982269,2.94,183.17,183.15,3.07]
[1753019982874,2.94,183.18,183.12,3.07]
[1753019983172,2.25819919,183.17,183.11,100.82]
[1753019983361,5.458,183.14,183.11,3.07]
[1753019983671,2.94,183.13,183.11,3.07]
[1753019984167,5.458,183.14,183.11,3.07]
[1753019984373,2.94,183.12,183.11,8.5288]
[1753019986773,2.94,183.16,183.12,3.07]
[1753019986968,2.94,183.16,183.1,3.07]
[1753019987172,5.4581,183.14,183.1,8.5289]
[1753019987372,2.94,183.13,183.1,8.5289]
[1753019987565,2.94,183.13,183.1,3.07]
[1753019987765,2.94,183.13,183.1,8.529]
[1753019988174,2.94,183.13,183.1,3.07]
[1753019988372,2.94,183.13,183.1,8.5289]
[1753019988570,2.94,183.13,183.09,100.8]
[1753019989068,8.3984,183.13,183.09,109.3292]
[1753019989277,2.94,183.12,183.09,109.3292]
[1753019989477,5.4578,183.15,183.11,5.4588]
[1753019989674,2.94,183.14,183.11,8.5288]
[1753019990573,2.94,183.15,183.12,8.5283]
[1753019990777,2.94,183.17,183.12,8.5283]
[1753019991278,5.4575,183.16,183.12,8.5283]
[1753019991479,2.94,183.15,183.12,8.5283]
[1753019991981,2.94,183.14,183.12,5.4583]
[1753019992381,8.3981,183.14,183.09,103.87]
[1753019992580,2.94,183.13,183.1,3.07]
[1753019992784,2.94,183.13,183.1,5.4589]
[1753019992983,2.94,183.12,183.09,103.87]
[1753019993483,2.94,183.12,183.1,5.459]
[1753019994179,2.94,183.12,183.11,5.4588]
[1753019994482,2.94,183.12,183.11,8.5288]
[1753019994683,2.94,183.12,183.1,5.459]
[1753019994983,2.94,183.11,183.1,8.529]
[1753019995985,2.94,183.13,183.1,8.529]
[1753019996672,2.94,183.13,183.11,5.4588]
[1753019997884,2.94,183.13,183.1,8.529]
[1753019999684,5.4582,183.13,183.1,5.459]
[1753019999879,3.17,183.12,183.09,5.4594]
[1753020000086,3.17,183.12,183.06,3.04]
[1753020000281,3.17,183.12,183.09,5.4592]
[1753020000481,3.17,183.12,183.09,3.04]
[1753020000786,3.17,183.12,183.09,8.4994]
[1753020000983,2.25819919,183.15,183.08,3.04]
[1753020001183,3.17,183.14,183.08,3.04]
[1753020001488,3.17,183.12,183.1,5.4591]
[1753020002078,3.17,183.12,183.1,8.4991]
[1753020002581,2.25819919,183.15,183.11,8.4988]
[1753020002781,8.38416304,183.17,183.11,3.04]
[1753020002986,3.17,183.14,183.11,8.4987]
[1753020003286,3.17,183.14,183.07,103.05819919]
[1753020003486,2.25819919,183.13,183.05,2.25819919]
[1753020003687,3.17,183.12,183.06,103.84]
[1753020003886,5.4594,183.1,183.06,103.84]
[1753020004087,3.17,183.1,183.05,3.04]
[1753020004384,3.17,183.08,183.04,100.8]
[1753020004585,3.17,183.07,183.06,8.5003]
[1753020004885,3.17,183.07,183.06,3.04]
[1753020006977,5.4597,183.08,183.05,3.04]
[1753020007187,2.25819919,183.11,183.05,3.04]
[1753020007387,3.17,183.07,183.06,3.04]
[1753020008876,3.17,183.09,183.06,3.04]
[1753020009083,3.17,183.15,183.07,3.04]
[1753020009290,3.17,183.12,183.07,3.04]
[1753020009889,8.6293,183.1,183.07,3.04]
[1753020011090,8.6295,183.09,183.08,3.04]
[1753020011891,3.17,183.09,183.08,3.04]
[1753020012385,3.17,183.08,183.07,3.04]
[1753020013094,3.17,183.09,183.07,3.04]
[1753020013288,3.17,183.09,183.08,3.04]
[1753020015491,3.17,183.09,183.06,5.4601]
[1753020015691,3.17,183.09,183.06,8.5001]
[1753020016095,6.12596385,183.17,183.07,3.04]
[1753020016289,3.17,183.14,183.07,3.04]
[1753020016694,5.4588,183.12,183.07,8.4998]
[1753020016896,3.17,183.11,183.08,3.04]
[1753020017298,3.17,183.11,183.08,8.4996]
[1753020017493,3.17,183.1,183.08,3.04]
[1753020019095,8.6292,183.1,183.08,3.04]
[1753020019299,3.17,183.09,183.06,8.5002]
[1753020019501,3.17,183.08,183.07,3.04]
[1753020021596,3.17,183.08,183.07,8.5]
[1753020021997,3.17,183.09,183.08,3.04]
[1753020023199,3.17,183.09,183.08,8.4997]
[1753020023605,3.17,183.09,183.08,3.04]
[1753020025899,3.17,183.09,183.05,3.04]
[1753020026598,3.17,183.09,183.05,5.4606]
[1753020026799,3.17,183.09,183.06,3.04]
[1753020027902,2.25819919,183.08,183.02,3.04]
[1753020028101,3.09,183.07,183.03,103.81]
[1753020028302,3.09,183.07,183.03,100.76]
[1753020028603,3.09,183.07,183.04,3.05]
[1753020030003,3.09,183.06,183.04,3.05]
[1753020030993,2.25819919,183.06,182.99,3.05]
[1753020031197,3.09,183.05,183.01,3.05]
[1753020031697,3.09,183.04,183.02,3.05]
[1753020032100,3.09,183.04,183.01,5.4616]
[1753020032300,3.09,183.04,183.02,3.05]
[1753020032706,3.09,183.03,183.01,3.05]
[1753020033201,3.09,183.09,183.01,5.30819919]
[1753020033403,3.09,183.09,183.05,3.05]
[1753020033599,3.09,183.09,183.06,3.05]
[1753020033908,3.09,183.08,183.07,3.05]
[1753020034899,3.09,183.08,183.07,8.51]
[1753020035105,3.09,183.09,183.07,3.05]
[1753020035297,3.09,183.09,183.08,3.05]
[1753020035711,3.09,183.09,183.08,8.5097]
[1753020036104,3.09,183.09,183.06,3.05]
[1753020036306,3.09,183.09,183.05,100.74]
[1753020036509,3.09,183.09,183.06,3.05]
[1753020038203,3.09,183.08,183.06,2.25819919]
[1753020038410,3.09,183.11,183.08,3.05]
[1753020038799,3.09,183.11,183.08,8.5095]
[1753020040108,3.09,183.11,183.09,5.4593]
[1753020040909,3.09,183.11,183.08,8.5096]
[1753020041114,3.09,183.11,183.08,3.05]
[1753020041307,3.09,183.1,183.09,3.05]
[1753020041608,8.38416304,183.16,183.09,3.05]
[1753020041609,3.09,183.15,183.09,3.05]
[1753020041801,3.09,183.13,183.08,2.25819919]
[1753020042005,3.09,183.13,183.08,5.30819919]
[1753020042206,3.09,183.13,183.09,3.05]
[1753020042412,3.09,183.13,183.1,5.4591]
[1753020043714,3.09,183.13,183.09,8.5093]
[1753020044214,3.09,183.13,183.1,8.5091]
[1753020044513,3.09,183.13,183.1,3.05]
[1753020044712,3.09,183.13,183.11,5.4588]
[1753020044911,3.09,183.13,183.1,3.05]
[1753020045503,6.12596385,183.17,183.1,5.30819919]
[1753020045704,3.09,183.15,183.11,3.05]
[1753020045909,3.09,183.17,183.11,3.05]
[1753020046116,3.09,183.15,183.11,3.05]
[1753020046313,3.09,183.14,183.11,3.05]
[1753020046813,3.09,183.14,183.13,5.4582]
[1753020048010,3.09,183.16,183.15,3.05]
[1753020048216,3.09,183.16,183.09,2.25819919]
[1753020048415,5.4577,183.15,183.11,5.4586]
[1753020048613,3.09,183.15,183.08,3.05]
[1753020049013,5.458,183.14,183.1,5.4591]
[1753020049209,3.09,183.15,183.1,5.4591]
[1753020049404,3.09,183.15,183.1,8.5091]
[1753020049612,8.5479,183.15,183.1,8.5091]
[1753020049813,3.09,183.14,183.1,5.4591]
[1753020050312,3.09,183.14,183.1,8.5091]
[1753020050510,3.09,183.13,183.08,3.05]
[1753020050710,3.09,183.13,183.07,2.25819919]
[1753020050911,3.09,183.13,183.07,5.30819919]
[1753020051111,3.09,183.13,183.08,5.4595]
[1753020051413,3.09,183.13,183.08,8.5095]
[1753020053017,8.5482,183.13,183.08,8.5095]
[1753020053213,3.09,183.12,183.08,8.5095]
[1753020054217,3.09,183.12,183.09,5.4593]
[1753020054414,3.09,183.12,183.09,8.5093]
[1753020054614,3.09,183.12,183.08,3.05]
[1753020054917,3.09,183.12,183.08,8.5096]
[1753020055515,3.09,183.12,183.07,5.46]
[1753020055716,3.09,183.11,183.05,3.05]
[1753020056214,3.09,183.11,183.07,3.05]
[1753020056520,3.09,183.11,183.05,3.05]
[1753020057517,3.09,183.1,183.07,3.05]
[1753020057717,3.09,183.15,183.09,3.05]
[1753020057925,5.4562,183.2,183.14,5.4577]
[1753020058216,5.4562,183.2,183.15,3.06]
[1753020058217,3.04,183.16,183.15,3.06]
[1753020059618,3.04,183.15,183.12,8.5184]
[1753020060811,3.04,183.15,183.09,3.06]
[1753020061017,2.25819919,183.14,183.09,3.06]
[1753020061218,3.04,183.13,183.09,3.06]
[1753020061419,3.04,183.13,183.07,8.5199]
[1753020061620,3.04,183.13,183.07,3.06]
[1753020062327,3.04,183.1,183.06,3.06]
[1753020062729,3.04,183.1,183.07,3.06]
[1753020063128,8.4993,183.1,183.07,3.06]
[1753020063321,3.04,183.09,183.07,3.06]
[1753020063529,3.04,183.08,183.07,3.06]
[1753020064329,3.04,183.1,183.08,3.06]
[1753020065029,3.04,183.11,183.08,3.06]
[1753020065631,3.04,183.11,183.06,3.06]
[1753020065926,3.04,183.08,183.06,3.06]
[1753020066127,3.04,183.08,183.07,3.06]
[1753020068038,3.04,183.08,183.06,5.4603]
[1753020068332,3.04,183.07,183.06,8.5203]
[1753020069139,3.04,183.07,183.06,3.06]
[1753020069738,3.04,183.07,183.06,8.5203]
[1753020069939,3.04,183.1,183.07,3.06]
[1753020070442,3.04,183.1,183.07,8.52]
[1753020070741,3.04,183.11,183.08,3.06]
[1753020070942,5.4589,183.11,183.06,8.5201]
[1753020071241,3.04,183.1,183.07,3.06]
[1753020072643,8.4992,183.1,183.07,3.06]
[1753020072844,3.04,183.09,183.06,5.4602]
[1753020073242,3.04,183.09,183.05,5.4604]
[1753020073438,3.04,183.09,183.07,3.06]
[1753020074441,5.4592,183.1,183.07,3.06]
[1753020074638,3.04,183.08,183.07,3.06]
[1753020075144,3.04,183.08,183.07,8.52]
[1753020076347,3.04,183.08,183.07,3.06]
[1753020081045,3.04,183.08,183.03,3.06]
[1753020081246,3.04,183.08,183.05,5.4606]
[1753020081444,3.04,183.08,183.05,8.5206]
[1753020082045,3.04,183.08,183.06,3.06]
[1753020083645,3.04,183.07,183.06,8.5203]
[1753020084543,5.4584,183.13,183.06,3.06]
[1753020084746,3.04,183.12,183.06,3.06]
[1753020084949,3.04,183.12,183.08,3.06]
[1753020085148,3.04,183.14,183.11,5.4586]
[1753020085349,3.04,183.14,183.13,3.06]
[1753020085550,3.04,183.14,183.11,8.5186]
[1753020085748,3.04,183.14,183.11,3.06]
[1753020086754,3.04,183.14,183.09,5.4593]
[1753020087053,3.04,183.1,183.05,3.06]
[1753020087851,3.04,183.1,183.05,8.5204]
[1753020088154,5.4592,183.1,183.06,3.19]
[1753020088357,2.98,183.09,183.06,3.19]
[1753020090151,2.98,183.09,183.06,8.6503]
[1753020090753,2.98,183.08,183.07,3.19]
[1753020094061,2.98,183.07,183.06,3.19]
[1753020094659,2.98,183.07,183.06,8.6503]
[1753020095761,2.98,183.09,183.06,8.6503]
[1753020095965,2.98,183.09,183.05,8.6505]
[1753020096165,2.98,183.09,183.06,3.19]
[1753020097062,2.98,183.09,183.06,8.6503]
[1753020097263,2.98,183.08,183.07,3.19]
[1753020099164,7.71719919,183.11,183.06,8.6503]
[1753020099364,2.98,183.07,183.06,8.6503]
[1753020104163,2.98,183.07,183.06,3.19]
[1753020105061,2.98,183.06,183.05,3.19]
[1753020106468,2.98,183.06,183.05,8.6506]
[1753020114168,2.98,183.06,183.05,5.4606]
[1753020115875,2.98,183.06,183.04,5.4608]
[1753020116173,2.98,183.06,183.04,8.6508]
[1753020116475,2.98,183.06,183.04,3.19]
[1753020116777,2.98,183.06,183.03,109.2511]
[1753020117165,2.98,183.06,183.04,5.4608]
[1753020118068,2.98,183.06,183.04,8.6508]
[1753020118266,3.02,183.07,183.06,3.19]
[1753020118670,3.02,183.07,183.04,3.19]
[1753020120073,3.02,183.07,183.04,8.6507]
[1753020120680,3.02,183.07,183.05,8.6506]
[1753020120876,3.02,183.07,183.05,3.19]
[1753020121676,3.02,183.06,183.03,100.6]
[1753020122076,3.02,183.06,183.04,8.6507]
[1753020122276,3.02,183.06,183.05,3.19]
[1753020122574,3.02,183.06,183.01,3.19]
[1753020122778,3.02,183.06,183.02,100.58]
[1753020122978,3.02,183.06,183.03,3.19]
[1753020123380,3.02,183.06,183.04,3.19]
[1753020123777,3.02,183.06,183.04,8.6508]
[1753020124385,3.02,183.06,183.04,3.19]
[1753020124581,3.02,183.06,183.03,8.6511]
[1753020124979,3.02,183.04,182.98,7.74260146]
[1753020125183,4.46546286,182.99,182.98,3.19]
[1753020125476,4.46546286,183.03,182.99,3.19]
[1753020125677,3.02,183.02,182.99,3.19]
[1753020126089,3.02,183.02,182.98,102.00546286]
[1753020126090,3.02,183.02,183.0,5.4619]
[1753020126279,3.02,183.02,183.01,3.19]
[1753020127083,3.02,183.02,183.01,8.6518]
[1753020127582,3.02,183.02,183.01,3.19]
[1753020127785,3.02,183.02,183.0,8.6521]
[1753020127975,5.27756289,183.02,182.98,3.19]
[1753020128179,3.02,183.01,182.97,250.738261]
[1753020128380,3.02,183.01,182.98,5.4627]
[1753020128683,3.02,183.01,182.97,250.738261]
[1753020128881,3.02,183.01,182.97,253.928261]
[1753020129080,3.02,183.01,182.99,5.4621]
[1753020129283,3.02,183.01,182.98,3.19]
[1753020130279,3.02,183.01,182.99,5.4624]
[1753020130789,3.02,183.01,182.98,3.19]
[1753020131081,5.461,183.04,182.99,3.19]
[1753020131082,3.02,183.03,182.99,3.19]
[1753020131283,3.02,183.04,182.99,3.19]
[1753020131477,3.02,183.03,183.0,3.19]
[1753020131683,3.02,183.03,183.02,3.19]
[1753020132085,3.02,183.03,183.02,8.6513]
[1753020132284,3.02,183.06,183.03,3.19]
[1753020132687,3.02,183.06,183.03,8.651]
[1753020133284,3.02,183.06,183.04,5.4609]
[1753020134288,3.02,183.06,183.03,8.6511]
[1753020134689,3.02,183.06,183.03,5.4611]
[1753020135889,3.02,183.06,183.04,5.4608]
[1753020136288,3.02,183.05,183.02,5.44756289]
[1753020136493,3.02,183.05,183.04,8.6509]
[1753020136693,3.02,183.05,183.02,3.19]
[1753020137896,3.02,183.05,183.03,5.4611]
[1753020138496,3.02,183.05,183.02,8.6514]
[1753020138899,3.02,183.03,182.97,158.831061]
[1753020139095,3.02,183.03,182.97,155.641061]
[1753020139297,8.4819,183.01,182.97,155.641061]
[1753020139495,3.02,183.0,182.98,5.4627]
[1753020140496,6.12596385,183.07,182.97,152.43582389]
[1753020140697,3.02,183.0,182.98,3.19]
[1753020141000,3.02,182.99,182.98,5.4626]
[1753020141198,3.02,182.99,182.97,150.178261]
[1753020141400,3.02,182.99,182.97,3.19]
[1753020141798,3.02,182.99,182.96,5.4632]
[1753020142304,3.02,182.99,182.94,3.19]
[1753020142597,3.02,182.99,182.94,103.75]
[1753020143000,3.02,182.99,182.94,100.56]
[1753020143201,3.02,182.99,182.93,3.19]
[1753020143705,3.02,182.99,182.94,5.4639]
[1753020144298,3.02,182.99,182.93,3.19]
[1753020144804,3.02,182.99,182.94,5.4638]
[1753020145795,3.02,182.99,182.95,5.4636]
[1753020146203,8.4826,182.99,182.93,3.19]
[1753020146404,3.02,182.98,182.93,3.19]
[1753020146605,3.02,182.98,182.93,5.4641]
[1753020146798,3.02,182.96,182.89,2.25756289]
[1753020147004,3.02,182.96,182.89,3.19]
[1753020147204,3.02,182.96,182.91,5.4648]
[1753020147603,3.02,182.96,182.89,3.19]
[1753020147910,3.02,182.96,182.87,3.19]
[1753020147911,3.02,182.91,182.87,3.19]
[1753020148206,3.02,182.91,182.88,2.25756289]
[1753020148507,3.02,182.91,182.9,5.4651]
[1753020148909,3.02,182.91,182.9,8.6451]
[1753020150003,3.0,182.94,182.91,3.18]
[1753020150511,2.25756289,182.93,182.86,3.18]
[1753020150711,3.0,182.92,182.86,3.18]
[1753020150906,3.0,182.92,182.84,5.43756289]
[1753020151210,3.0,182.92,182.87,5.4658]
[1753020151411,3.0,182.92,182.84,5.43756289]
[1753020151615,3.0,182.92,182.88,5.4656]
[1753020152312,3.0,182.92,182.89,5.4653]
[1753020152512,3.0,182.92,182.85,3.18]
[1753020152908,3.0,182.92,182.89,5.4652]
[1753020153104,3.0,182.92,182.87,3.18]
[1753020153410,3.0,183.01,182.88,2.25756289]
[1753020153612,3.0,182.96,182.89,3.18]
[1753020154009,3.0,182.96,182.93,5.4642]
[1753020154505,3.0,182.96,182.91,3.18]
[1753020154506,6.12596385,183.08,182.95,3.18]
[1753020154709,3.0,183.04,182.98,2.25756289]
[1753020154908,3.0,183.04,182.99,3.18]
[1753020155109,3.0,183.04,183.0,5.462]
[1753020156012,3.0,183.04,182.97,3.18]
[1753020156212,5.25756289,183.04,182.97,3.18]
[1753020156414,3.0,183.03,182.97,3.18]
[1753020156716,3.0,183.03,182.99,5.4622]
[1753020157511,3.0,183.03,182.97,3.18]
[1753020158915,3.0,183.03,182.99,5.4622]
[1753020160115,3.0,183.01,182.98,5.4627]
[1753020160416,3.0,183.01,182.95,3.18]
[1753020160914,2.25756289,183.0,182.93,3.18]
[1753020161118,3.0,182.99,182.93,3.18]
[1753020161921,3.0,182.99,182.97,5.4627]
[1753020162213,3.0,182.99,182.86,100.56]
[1753020162214,3.0,182.99,182.93,2.25756289]
[1753020162420,3.0,182.98,182.94,3.18]
[1753020162619,3.0,182.97,182.94,3.18]
[1753020163221,3.0,182.97,182.96,5.4633]
[1753020163421,3.0,182.97,182.96,8.6433]
[1753020164420,3.0,182.97,182.95,5.4635]
[1753020164621,3.0,182.97,182.93,3.18]
[1753020164818,3.0,182.97,182.91,2.25756289]
[1753020165121,3.0,182.97,182.96,5.4633]
[1753020168728,3.0,182.97,182.95,8.6436]
[1753020168925,3.0,182.96,182.95,8.6436]
[1753020170627,3.0,182.98,182.97,5.463]
[1753020171424,3.0,182.98,182.96,5.4631]
[1753020171927,3.0,182.98,182.97,5.463]
[1753020172627,3.0,182.98,182.95,3.18]
[1753020172826,3.0,182.98,182.96,5.4632]
[1753020173730,3.0,182.97,182.96,8.6432]
[1753020175231,3.0,182.97,182.96,5.4632]
[1753020176429,3.0,182.97,182.96,8.6432]
[1753020182541,3.16,182.99,182.93,3.12]
[1753020182836,5.41756289,182.99,182.93,3.12]
[1753020183138,3.16,182.98,182.96,3.12]
[1753020183534,3.16,182.98,182.94,3.12]
[1753020183734,3.16,182.98,182.95,3.12]
[1753020183928,3.16,182.98,182.96,5.4631]
[1753020184841,3.16,182.97,182.96,8.5831]
[1753020185939,3.16,182.97,182.94,3.12]
[1753020186339,3.16,182.95,182.92,3.12]
[1753020186838,3.16,182.95,182.94,3.12]
[1753020187236,3.16,182.95,182.94,8.5839]
[1753020187937,3.16,182.95,182.94,3.12]
[1753020188332,5.41756289,182.98,182.94,3.12]
[1753020188538,5.41756289,182.98,182.91,2.25756289]
[1753020188738,5.41756289,182.98,182.97,3.12]
[1753020189341,3.16,182.97,182.87,4.55260146]
[1753020189639,2.25756289,182.94,182.91,3.12]
[1753020189845,3.16,182.92,182.91,8.5846]
[1753020190147,3.16,182.92,182.91,3.12]
[1753020190350,3.16,182.92,182.89,8.5852]
[1753020190543,3.16,182.91,182.9,3.12]
[1753020190948,3.16,182.91,182.9,5.4651]
[1753020191250,5.41756289,182.92,182.91,3.12]
[1753020191448,3.16,182.92,182.91,8.5848]
[1753020191650,1995.82649888,183.9,182.88,2.25756289]
[1753020191651,5.4627,182.98,182.88,2.25756289]
[1753020191947,5.4627,182.98,182.89,3.12]
[1753020191948,5.41756289,182.96,182.89,3.12]
[1753020192448,2.25756289,182.96,182.93,3.12]
[1753020192650,3.16,182.94,182.93,3.12]
[1753020193748,2.25756289,182.97,182.94,3.12]
[1753020193953,3.16,182.96,182.93,5.4642]
[1753020194143,3.16,182.95,182.94,3.12]
[1753020194746,3.16,182.96,182.95,3.12]
[1753020195447,3.16,182.98,182.96,3.12]
[1753020195842,3.16,182.98,182.92,2.25756289]
[1753020196155,3.16,182.98,182.97,3.12]
[1753020197849,3.16,183.02,182.97,3.12]
[1753020198440,3.16,183.02,183.01,5.4618]
[1753020198649,3.16,183.02,183.01,8.5818]
[1753020199441,3.16,183.06,182.98,3.12]
[1753020199643,3.16,183.04,182.98,3.12]
[1753020199946,3.16,183.04,183.01,5.4615]
[1753020200150,5.41756289,183.04,183.01,8.5815]
[1753020200345,6.12596385,183.08,183.01,3.12]
[1753020200539,3.16,183.02,183.01,8.5818]
[1753020203145,3.16,183.02,183.01,5.4618]
[1753020203352,3.16,183.02,183.0,5.462]
[1753020203750,3.16,183.02,182.98,3.12]
[1753020203947,3.16,183.02,182.94,2.25756289]
[1753020204152,3.16,183.02,182.95,3.12]
[1753020204452,2.25756289,183.01,182.97,5.4628]
[1753020204653,3.16,183.0,182.97,5.4628]
[1753020204850,3.16,183.0,182.97,3.12]
[1753020205249,3.16,182.99,182.98,3.12]
[1753020205454,6.12596385,183.06,183.01,5.4617]
[1753020205652,3.16,183.02,183.01,5.4617]
[1753020205850,3.16,183.02,183.01,8.5817]
[1753020207449,5.41756289,183.04,183.03,5.4612]
[1753020207846,3.16,183.03,183.02,8.5814]
[1753020208357,3.16,183.03,183.02,5.4614]
[1753020208545,3.16,183.03,183.01,5.4617]
[1753020209147,2.25756289,183.02,182.98,3.19]
[1753020209347,3.1,183.01,182.97,3.19]
[1753020209753,3.1,183.01,182.98,5.4626]
[1753020210250,2.25756289,183.02,182.99,3.19]
[1753020210450,3.1,183.03,182.97,3.19]
[1753020210845,3.1,183.03,183.02,5.4615]
[1753020211661,3.1,183.03,183.02,8.6515]
[1753020212655,3.1,183.05,183.04,5.4608]
[1753020212952,6.12596385,183.11,182.91,17.05121653]
[1753020212953,2.25756289,183.08,182.99,2.25756289]
[1753020213159,3.1,183.06,183.05,3.19]
[1753020213355,3.1,183.06,183.05,8.6506]
[1753020214058,3.1,183.06,183.05,5.4606]
[1753020217356,3.1,183.06,183.03,3.19]
[1753020217357,3.1,183.06,183.04,5.4608]